Cogmind - Beta 13 @@@ ROGUE MODE // 2024.03.15 @ 18:44:58 Player: opdo Result: Destroyed by Y-45 Defender with Heavy Assault Rifle Performance ------------- Evolutions (1) 500 Regions Visited (3) 600 Robots Destroyed (11) 55 Value Destroyed (202) 202 Prototype IDs (0) 0 Alien Tech Used (0) 0 Bonus (0) 0 TOTAL SCORE: 1357 Bonus ------- None Cogmind --------- Core Integrity 0/400 Matter 300/300 Energy 90/265 System Corruption 0% Temperature Warm (195) Movement Flying (355) Ox4 Location -9/Materials Parts ------- > --- POWER (1) -------- Improved Ion Engine > --- PROPULSION (3) --- VTOL Module > --- UTILITY (3) ------ Small Storage Unit Seismic Detector Transport Network Coupler > --- WEAPON (2) ------- Pulse Rifle Pulse Rifle > --- INVENTORY (8) ---- Ion Engine Flight Unit Terrain Scan Processor Pulse Rifle Light Assault Rifle Peak State ------------ > --- POWER ------------ Ion Engine > --- PROPULSION ------- Flight Unit Flight Unit VTOL Module > --- UTILITY ---------- Small Storage Unit Seismic Detector Transport Network Coupler > --- WEAPON ----------- Pulse Rifle Pulse Rifle > --- INVENTORY -------- Ion Engine Improved Ion Engine Aluminum Leg Aluminum Leg Terrain Scan Processor Small Laser Light Assault Rifle Blade Saw [Rating: 15] Favorites ----------- Power Ion Engine Engine Ion Engine Propulsion Flight Unit Leg Aluminum Leg Flight Unit Flight Unit Utility Small Storage Unit Device Seismic Detector Storage Small Storage Unit Processor Transport Network Coupler Weapon Small Laser Energy Gun Small Laser Ballistic Gun Assault Rifle Slashing Weapon Blade Saw Build | -11 -10 -10 -9 ------- Run | Yrd Mat Min Mat Slots Evolved 2 | . . . 2 Power . | . . . . Propulsion 1 | . . . 1 Utility 1 | . . . 1 Weapon . | . . . . Parts Attached 23 | 6 1 . 16 Power 3 | 1 . . 2 Engine 3 | 1 . . 2 Core . | . . . . Reactor . | . . . . Propulsion 8 | 2 . . 6 Treads . | . . . . Leg 3 | 2 . . 1 Wheel . | . . . . Hover . | . . . . Flight 5 | . . . 5 Utility 4 | 1 1 . 2 Device 2 | . 1 . 1 Storage 1 | 1 . . . Processor 1 | . . . 1 Hackware . | . . . . Protection . | . . . . Artifact . | . . . . Weapon 8 | 2 . . 6 Energy Gun 5 | 1 . . 4 Energy Cannon . | . . . . Ballistic Gun 2 | 1 . . 1 Ballistic Cannon . | . . . . Launcher . | . . . . Special Weapon . | . . . . Impact Weapon . | . . . . Slashing Weapon 1 | . . . 1 Piercing Weapon . | . . . . Special Melee Weapon . | . . . . Unidentified Prototypes . | . . . . Parts Lost 10 | . . . 10 Power 2 | . . . 2 Propulsion 4 | . . . 4 Utility 1 | . . . 1 Weapon 3 | . . . 3 Highest Loss Streak 4 | . . . 4 To Critical Strikes . | . . . . Average Slot Usage (%) 92 | . 94 100 91 Engine 9 | . 14 14 8 Leg 7 | . 28 28 3 Flight 22 | . . . 26 Device 11 | . 8 14 12 Storage 11 | . 14 14 11 Processor 6 | . . . 7 Energy Gun 11 | . 14 14 11 Ballistic Gun 7 | . 14 14 6 Slashing Weapon 2 | . . . 3 Naked Turns . | . . . . Heaviest Build 19 | 11 12 12 19 Greatest Support 20 | 20 20 20 20 Greatest Overweight (x) 4 | . . . 4 Average Overweight (x) . | . . . . Largest Inventory Capacity 8 | 8 8 8 8 Average Capacity 7 | 7 8 8 8 Most Carried 8 | 4 2 1 8 Average Carried 3 | . 1 1 4 Final Capacity 8 | 8 8 8 8 Final Carried 5 | 1 1 1 5 Class Distribution -------------------- 95% | Mutant 4% | Sprinter Dominant Class ---------------- Mutant | -10/Materials Mutant | -10/Mines Mutant | -9/Materials Resources | -11 -10 -10 -9 ----------- Run | Yrd Mat Min Mat Matter Collected 434 | 181 . . 253 Remotely . | . . . . Salvage Created 289 | . . 15 274 Parts 23 | . . 3 20 Haulers Intercepted 1 | . . . 1 Recyclers Shooed . | . . . . Parts Field Recycled . | . . . . Retrieved Matter . | . . . . Parts Self-Destructed . | . . . . Prevented . | . . . . Kills | -11 -10 -10 -9 ------- Run | Yrd Mat Min Mat Combat Hostiles Destroyed 9 | . . 1 8 Guns 9 | . . 1 8 Classes Destroyed 4 | . . 1 3 Builder 1 | . . . 1 Hauler 1 | . . . 1 Swarmer 6 | . . 1 5 Sentry 3 | . . . 3 Best Kill Streak 4 | . . 1 4 Combat Bots Only 3 | . . 1 3 Max Kills in Single Turn 1 | . . 1 1 Gunslinging . | . . . . Exploded . | . . . . Melee . | . . . . Uniques/NPCs Destroyed . | . . . . Combat | -11 -10 -10 -9 -------- Run | Yrd Mat Min Mat Hostile Shots Fired 107 | . . 16 91 Missed 27 | . . 2 25 Damage Taken 1145 | . . 152 993 Core 424 | . . 14 410 Absorbed by Shields . | . . . . Core Remaining (%) 97 | 100 . 94 . Volleys Fired 38 | . . 1 37 Largest 2 | . . 2 2 Hottest 126 | . . 60 126 Shots Fired 64 | . . 2 62 Gun 64 | . . 2 62 Cannon . | . . . . Launcher . | . . . . Special . | . . . . Kinetic 20 | . . 1 19 Thermal 44 | . . 1 43 Explosive . | . . . . Electromagnetic . | . . . . Robot Hit Streak 18 | . . 1 18 Robot Miss Streak 3 | . . 1 3 Penetration Max . | . . . . Secondary Targets 2 | . . . 2 Max Gunslinging Chain 1 | . . . 1 Shots Hit Robots 51 | . . 1 50 Core Hits 16 | . . 1 15 Critical Kills . | . . . . Critical Parts Destroyed . | . . . . Critical Strikes 1 | . . . 1 Sever 1 | . . . 1 Melee Attacks 7 | . . . 7 Impact . | . . . . Slashing 7 | . . . 7 Piercing . | . . . . Sneak Attacks . | . . . . Combat Hostiles . | . . . . Follow-up Attacks . | . . . . Damage Inflicted 730 | . . 22 708 Guns 644 | . . 22 622 Cannons . | . . . . Explosions . | . . . . Melee 86 | . . . 86 Ramming . | . . . . Kinetic 177 | . . 12 165 Thermal 467 | . . 10 457 Explosive . | . . . . Electromagnetic . | . . . . Impact . | . . . . Slashing 86 | . . . 86 Piercing . | . . . . Highest Corruption . | . . . . Average Corruption . | . . . . Corruption Purged . | . . . . Corruption Blocked . | . . . . Overload Shots . | . . . . Overflow Damage . | . . . . Projectiles . | . . . . Explosions . | . . . . Melee . | . . . . Knockbacks . | . . . . Impact . | . . . . Kinetic . | . . . . Secondary . | . . . . Self-Inflicted Damage . | . . . . Shots . | . . . . Rammed . | . . . . Targets Rammed . | . . . . Kicked . | . . . . Crushed . | . . . . Highest Temperature 186 | . . . 186 Average Temperature 57 | . . . 57 Received Heat Transfer 225 | . . . 225 Siege Activations . | . . . . Robots Corrupted . | . . . . Combat Hostiles . | . . . . Parts Fried . | . . . . Impact Corruptions . | . . . . Robots Melted . | . . . . Combat Hostiles . | . . . . Parts Melted 1 | . . . 1 Heat Transferred 1043 | . . 25 1018 Parts Sabotaged . | . . . . Parts Stolen . | . . . . Parts Stripped . | . . . . Power Chain Reactions . | . . . . Alert | -11 -10 -10 -9 ------- Run | Yrd Mat Min Mat Peak Influence 188 | . . 30 188 Initial 11 | . . . 11 Average 66 | . . 30 82 Maximum Alert Level . | . . . . Low Security (%) 100 | 100 100 100 100 Level 1 . | . . . . Level 2 . | . . . . Level 3 . | . . . . Level 4 . | . . . . Level 5 . | . . . . High Security . | . . . . Max Security . | . . . . Squads Dispatched 2 | . 2 . . Investigation 1 | . 1 . . Extermination . | . . . . Reinforcement 1 | . 1 . . Assault . | . . . . Garrison . | . . . . Intercept . | . . . . Searches Triggered . | . . . . Construction Impeded . | . . . . Haulers Reinforced . | . . . . Active Scanning Responses . | . . . . Cargo Convoy Interrupts . | . . . . Stealth | -11 -10 -10 -9 --------- Run | Yrd Mat Min Mat Distress Signals . | . . . . Communications Jammed . | . . . . Distress Signals . | . . . . Times Spotted 35 | . . 23 12 Peak Tracking Total 22 | . 1 22 4 Tactical Retreats . | . . . . Traps | -11 -10 -10 -9 ------- Run | Yrd Mat Min Mat Traps Triggered . | . . . . Indirectly . | . . . . Trap Hack Attempts . | . . . . Triggered . | . . . . Disarmed . | . . . . Reprogrammed . | . . . . Reused . | . . . . Traps Extracted . | . . . . Installed . | . . . . Triggered . | . . . . Machines | -11 -10 -10 -9 ---------- Run | Yrd Mat Min Mat Machines Disabled . | . . . . Max in Single Turn . | . . . . Machines Repaired . | . . . . Machines Dismantled . | . . . . Machines Sabotaged . | . . . . Overloaded Fab Kills . | . . . . Hacking | -11 -10 -10 -9 --------- Run | Yrd Mat Min Mat Machines Accessed 3 | . 1 . 2 Terminals 1 | . . . 1 Fabricators . | . . . . Repair Stations 1 | . . . 1 Recycling Units 1 | . 1 . . Scanalyzers . | . . . . Garrison Access . | . . . . Total Hacks 6 | . 3 . 3 Successful 2 | . 1 . 1 Failed 4 | . 2 . 2 Catastrophic . | . . . . Database Lockouts . | . . . . Manual 2 | . . . 2 Terminals 1 | . . . 1 Fabricators . | . . . . Repair Stations 2 | . . . 2 Recycling Units 3 | . 3 . . Scanalyzers . | . . . . Garrison Access . | . . . . Terminal Hacks 1 | . . . 1 Alert Level 1 | . . . 1 Fabricator Hacks . | . . . . Repair Station Hacks . | . . . . Recycling Unit Hacks 1 | . 1 . . Retrieve Components 1 | . 1 . . Scanalyzer . | . . . . Garrison Access Hacks . | . . . . Unauthorized Hacks . | . . . . Terminals . | . . . . Fabricators . | . . . . Repair Stations . | . . . . Recycling Units . | . . . . Scanalyzers . | . . . . Garrison Access . | . . . . Data Cores Recovered . | . . . . Used . | . . . . Hacking Detections 3 | . 1 . 2 Full Trace Events 1 | . 1 . . Feedback Events . | . . . . Feedback Blocked . | . . . . Robot Schematics Acquired . | . . . . Robots Built . | . . . . Authchips . | . . . . Time . | . . . . Total Robot Build Rating . | . . . . Part Schematics Acquired . | . . . . Parts Built . | . . . . Authchips . | . . . . Time . | . . . . Total Part Build Rating . | . . . . Parts Repaired . | . . . . Time . | . . . . Parts Recycled . | . . . . Recycled Matter . | . . . . Retrieved Matter . | . . . . Retrieved Components . | . . . . Parts Scanalyzed . | . . . . Part Schematics Acquired . | . . . . Parts Damaged . | . . . . Bothacking | -11 -10 -10 -9 ------------ Run | Yrd Mat Min Mat Used RIF Installer . | . . . . Robots Hacked . | . . . . Non-combat . | . . . . Combat . | . . . . Robot Hacks Applied . | . . . . Relay Couplers Released . | . . . . Fabnet Peak Effective % . | . . . . Robots Rewired . | . . . . Allies Hacked . | . . . . Hacks Repelled . | . . . . Allies | -11 -10 -10 -9 -------- Run | Yrd Mat Min Mat Total Allies . | . . . . Largest Group . | . . . . Highest-Rated Group . | . . . . Highest-Rated Ally . | . . . . Total Orders . | . . . . Ally Attacks . | . . . . Total Damage . | . . . . Kills . | . . . . Allies Corrupted . | . . . . Allies Melted . | . . . . Intel | -11 -10 -10 -9 ------- Run | Yrd Mat Min Mat Robot Analysis Total . | . . . . Derelict Logs Recovered . | . . . . Drone Launches . | . . . . Drone Recoveries . | . . . . Exploration | -11 -10 -10 -9 ------------- Run | Yrd Mat Min Mat Turns Passed 808 | 55 98 12 643 Spaces Moved 661 | 43 79 8 531 Core 13 | 13 . . . Treads . | . . . . Legs 153 | 30 79 8 36 Wheels . | . . . . Hover . | . . . . Flight 495 | . . . 495 Fastest Speed 32 | 50 120 120 32 Average Speed 93 | 98 120 120 88 Slowest Speed 355 | 120 120 120 355 Overloaded Moves . | . . . . Propulsion Burnouts . | . . . . Robots Hopped . | . . . . Cave-ins Triggered . | . . . . Exploration Rate (%) 12 | 4 12 8 27 Regions Visited 3 Branch Regions 1 Pre-discovered Areas . | . . . . Known Exits Taken . | . . . . Unknown Exits Taken 3 | 1 1 1 . Scrap Searched . | . . . . Spaces Dug . | . . . . Terrain Destroyed . | . . . . Melee . | . . . . Projectile . | . . . . AOE . | . . . . Terrain Rammed . | . . . . Walls Destroyed . | . . . . Machines Disabled . | . . . . Actions | -11 -10 -10 -9 --------- Run | Yrd Mat Min Mat Total 772 | 55 82 8 627 Wait 16 | . 2 . 14 Move 658 | 42 78 7 531 Hop . | . . . . Pick Up 26 | 7 1 . 18 Fast Attach . | . . . . Attach 17 | 6 1 . 10 Detach . | . . . . Swap 6 | . . . 6 Drop 4 | . . . 4 Fire 38 | . . 1 37 Melee 7 | . . . 7 Ram . | . . . . Kick . | . . . . Crush . | . . . . Escape Stasis . | . . . . Rewire . | . . . . Trap . | . . . . Miscellaneous . | . . . . Route ------- -11/Scrapyard -10/Materials -10/Mines -9/Materials History --------- Turn | Location | Event 2 | -11/Scrapyard | Met Revision 17 7 | -11/Scrapyard | Discovered new exit (range 15) 56 | -11/Scrapyard | Entered Materials 56 | -10/Materials | Discovered new exit (range 7) 154 | -10/Materials | Entered Mines 154 | -10/Mines | Discovered new exit (range 10) 155 | -10/Mines | Assembled infested the area 166 | -10/Mines | Entered Materials 166 | -9/Materials | Evolved 2 slots: Propulsion x1, Utility x1 307 | -9/Materials | Build established: Mutant 324 | -9/Materials | Core integrity fell below 50% 354 | -9/Materials | Lost 4 parts (1p1u2w) 786 | -9/Materials | Core integrity fell below 20% 808 | -9/Materials | Lost 4 parts (1p2n1w) 809 | -9/Materials | Destroyed by Y-45 Defender with Heavy Assault Rifle Last Messages --------------- Dropped Sml. Laser. Acquired Pulse Rifle. Acquired 12 matter. Dropped Aluminum Leg. Acquired Flight Unit. Dropped Aluminum Leg. R-06 Scavenger collects Lgt. Treads. K-01 Serf cleans the Terminal. Y-45 Defender Lgt. Armor Plating severed. Flight Unit destroyed. Blade Saw destroyed. Flight Unit destroyed. Critical hit (Burn: +37). Ion Engine destroyed. Imp. Ion Engine melted. Y-45 Defender destroyed. Switching to secondary target: Y-45 Defender. Acquired 18 matter. Acquired 10 matter. Y-45 Defender heat damages Lgt. Armor Plating. Map ----- +----------------------------------------------------+ | ## #### # """ #?????????????????????????????? | | ## #### # #?????????????????????????????? | | ## #### # """ #?????????????????????????????? | | ##+#### # """ #?????????????????????????????? | | ## # """ #?????????????????????????????? | | ## # #?????????????????????????????? | | * ## ##########?????????????????????????????? | | * ## ##?????????????????????????????????????? | | ## #####??????????????????????????????????? | | ## #####??????????????????????????????????? | | ##+### ##??????????????????????????????????? | | ##??????????????????????????????????? | | ##??????????????????????????????????? | | """ ##??????????????????????????????????? | | #### "T" ##??????????????????????????????????? | | #### ##??????????????????????????????????? | | ??## !##??????????????????????????????????? | | ??## ###?????????????????????????????????? | | ??## # ########??????????????????????????? | | ??## # #??????????????????????????? | | ??## # #??????????????????????????? | | ??## # """ #??????????????????????????? | | ??## # """ #??????????????????????????? | | ??## # """ #####??????????????????????? | | ??## # # T!##?????????????????????? | | ??## # """ # =@!#?????????????????????? | | ??## %% " # """ #=[ ##?????????????????????? | | #?## "" ## """ #== #??????????????????????? | | # """ ## #[Y #??????????????????????? | | " # """ ## # =#??????????????????????? | | "" # % #######+## #??????????????????????? | | "" # ##### ##+###?????????????????????? | | "" + #?????????????????????? | | " # +?????????????????????? | | ## ### ##### ##+###?????????????????????? | | ##+####+#####?## ##??????????????????????????? | | ?# % #?????# #???????????????????????????? | | #??# #?????# #???????????????????????????? | | ???# #?????# #????????????????????a??????? | | ???# #?????# #???????????????????????????? | | ???# #????? #???????????????????????????? | | ???# #????? ???????????????????????????? | | ???# #????? a#???????????????????????????? | | ???# #???? #???????????????????????????? | | ???# #???? #???????????????????????????? | | ???#######+##????T" #???????????????????????????? | | ??????????????????" ???????????????????????????? | | ??????????????????? ????????????????????????????? | | ?????????????????????????????????????????????????? | | ?????????????????????????????????????????????????? | +----------------------------------------------------+ Best States ------------- Heat Dissipation 28 Energy Generation 12 Energy Capacity 265 Matter Stores 300 Matter Capacity 300 Sight Range 16 Terrain Scan Density 10 Evasion (%) 63 Item Schematics ----------------- None Robot Schematics ------------------ None Fabricated ------------ Nothing Alien Tech Used ----------------- None Achievements -------------- None Challenges ------------ None Game ------ Seed DeuteriumRecoilNetwork Manual? 0 Play Time 00:10:08 Cumulative 7.6 hours Start 2024.03.15 @ 18:37:29 End 2024.03.15 @ 18:44:58 Sessions 1 Manual Loads 0 Difficulty Rogue Special Mode None Game No. 20 Rogue 18 Adventurer 2 Explorer 0 Win Type - Total 0 Types 0/0/0/0/0/0/0/0/0 Lore% 12 Gallery% 21 Achievement% 13 Wizard Run 0 Options --------- Layout 1 ASCII 0 Keyboard 0 Movement Arrows Keybinds 0 Fullscreen 1 Font 24/Smallcaps Map View 50x35 Zoom Use 0% Tactical HUD 0 Map Filters NONE Filters NONE Steam 1 RUN: 76aad141-26b4-4684-bcca-4d569afd289a